[Event "Titled Tuesday Blitz March 07 Early 2023"]
[White "Rios Escobar, Adan"]
[Black "Petre, Nad-Titus"]
[WhiteFideId "3403645"]
[BlackFideId "1204165"]
[WhiteElo "2395"]
[BlackElo "2354"]
[Result "0-1"]
[Round "04"]
[TimeControl "180+2"]
[Date "2023.03.07"]
[WhiteClock "0:00:02"]
[BlackClock "0:00:21"]

1. d4 {[%clk 0:02:53]}  d5 {[%clk 0:02:54]} 2. g3 {[%clk 0:02:53]}  Bf5 {[%clk 0:02:50]} 3. c4 {[%clk 0:02:52]}  e6 {[%clk 0:02:44]} 4. Nf3 {[%clk 0:02:51]}  Nf6 {[%clk 0:02:42]} 5. Nc3 {[%clk 0:02:50]}  c6 {[%clk 0:02:35]} 6. Nh4 {[%clk 0:02:49]}  Bg4 {[%clk 0:02:32]} 7. h3 {[%clk 0:02:49]}  Bh5 {[%clk 0:02:32]} 8. g4 {[%clk 0:02:50]}  Nfd7 {[%clk 0:02:27]} 9. Qb3 {[%clk 0:02:48]}  b6 {[%clk 0:02:11]} 10. Bg2 {[%clk 0:02:49]}  Na6 {[%clk 0:02:02]} 11. a3 {[%clk 0:02:20]}  Nc7 {[%clk 0:01:50]} 12. cxd5 {[%clk 0:02:02]}  cxd5 {[%clk 0:01:44]} 13. e4 {[%clk 0:02:02]}  dxe4 {[%clk 0:01:25]} 14. Nxe4 {[%clk 0:02:00]}  Bg6 {[%clk 0:01:21]} 15. Nxg6 {[%clk 0:01:52]}  hxg6 {[%clk 0:01:22]} 16. Bg5 {[%clk 0:01:50]}  Be7 {[%clk 0:01:11]} 17. Nd6+ {[%clk 0:01:43]}  Kf8 {[%clk 0:01:11]} 18. Bf4 {[%clk 0:01:32]}  Nd5 {[%clk 0:01:06]} 19. Bxd5 {[%clk 0:01:29]}  exd5 {[%clk 0:01:07]} 20. Qxd5 {[%clk 0:01:29]}  Bxd6 {[%clk 0:01:08]} 21. Bxd6+ {[%clk 0:01:27]}  Kg8 {[%clk 0:01:08]} 22. O-O-O {[%clk 0:00:59]}  Nf6 {[%clk 0:01:07]} 23. Qe5 {[%clk 0:00:55]}  Qd7 {[%clk 0:01:02]} 24. Kb1 {[%clk 0:00:48]}  Re8 {[%clk 0:00:59]} 25. Qf4 {[%clk 0:00:38]}  g5 {[%clk 0:00:58]} 26. Qh2 {[%clk 0:00:29]}  Nxg4 {[%clk 0:00:58]} 27. Qg3 {[%clk 0:00:24]}  Nxf2 {[%clk 0:00:51]} 28. Be5 {[%clk 0:00:16]}  Nxd1 {[%clk 0:00:47]} 29. Rxd1 {[%clk 0:00:12]}  Qf5+ {[%clk 0:00:48]} 30. Ka1 {[%clk 0:00:12]}  Rxh3 {[%clk 0:00:48]} 31. Qg2 {[%clk 0:00:12]}  Rc8 {[%clk 0:00:45]} 32. Rf1 {[%clk 0:00:11]}  Qd3 {[%clk 0:00:37]} 33. Rg1 {[%clk 0:00:04]}  Rf3 {[%clk 0:00:30]} 34. Qxg5 {[%clk 0:00:04]}  Rf1+ {[%clk 0:00:31]} 35. Rxf1 {[%clk 0:00:04]}  Qxf1+ {[%clk 0:00:32]} 36. Ka2 {[%clk 0:00:04]}  f6 {[%clk 0:00:25]} 37. Qg4 {[%clk 0:00:04]}  Qc4+ {[%clk 0:00:24]} 38. Ka1 {[%clk 0:00:02]}  Qc1+ {[%clk 0:00:23]} 39. Ka2 {[%clk 0:00:01]}  Qc4+ {[%clk 0:00:24]} 40. Ka1 {[%clk 0:00:02]}  fxe5 {[%clk 0:00:24]} 41. Qd7 {[%clk 0:00:01]}  exd4 {[%clk 0:00:22]} 42. Qxa7 {[%clk 0:00:01]}  d3 {[%clk 0:00:22]} 43. Qxb6 {[%clk 0:00:01]}  d2 {[%clk 0:00:23]} 44. Qg1 {[%clk 0:00:01]}  Qc1+ {[%clk 0:00:23]} 45. Ka2 {[%clk 0:00:01]}  Qxg1 {[%clk 0:00:22]} 46. a4 {[%clk 0:00:01]}  d1=Q {[%clk 0:00:21]} 47. a5 {[%clk 0:00:02]}  Qa4# {[%clk 0:00:21]} 0-1


[Site "https://www.chess.com"]

[Event "Titled Tuesday Blitz March 07 Early 2023"]
[White "Kvaloy, Aksel Bu"]
[Black "Szyszylo, Rafal"]
[WhiteFideId "1528815"]
[BlackFideId "1109626"]
[WhiteElo "2208"]
[BlackElo "1951"]
[Result "1-0"]
[Round "04"]
[TimeControl "180+2"]
[Date "2023.03.07"]
[WhiteClock "0:00:55"]
[BlackClock "0:00:06"]

1. d4 {[%clk 0:02:47]}  g6 {[%clk 0:02:59]} 2. e4 {[%clk 0:02:46]}  d6 {[%clk 0:02:58]} 3. Nc3 {[%clk 0:02:44]}  Nf6 {[%clk 0:02:58]} 4. h4 {[%clk 0:02:42]}  Bg7 {[%clk 0:02:56]} 5. h5 {[%clk 0:02:42]}  Nxh5 {[%clk 0:02:56]} 6. Rxh5 {[%clk 0:02:43]}  gxh5 {[%clk 0:02:55]} 7. Qxh5 {[%clk 0:02:44]}  Bxd4 {[%clk 0:02:54]} 8. Bc4 {[%clk 0:02:38]}  Bxc3+ {[%clk 0:02:45]} 9. bxc3 {[%clk 0:02:37]}  e6 {[%clk 0:02:44]} 10. Bg5 {[%clk 0:02:36]}  Qd7 {[%clk 0:02:40]} 11. Bf6 {[%clk 0:02:36]}  Rf8 {[%clk 0:02:35]} 12. Nf3 {[%clk 0:02:30]}  d5 {[%clk 0:02:23]} 13. exd5 {[%clk 0:02:26]}  exd5 {[%clk 0:02:22]} 14. Bxd5 {[%clk 0:02:25]}  Nc6 {[%clk 0:01:13]} 15. Kf1 {[%clk 0:02:18]}  Ne7 {[%clk 0:00:51]} 16. Re1 {[%clk 0:02:15]}  Qb5+ {[%clk 0:00:49]} 17. c4 {[%clk 0:02:10]}  Qc5 {[%clk 0:00:43]} 18. Bxe7 {[%clk 0:01:45]}  Qxe7 {[%clk 0:00:43]} 19. Rxe7+ {[%clk 0:01:45]}  Kxe7 {[%clk 0:00:43]} 20. Qe5+ {[%clk 0:01:43]}  Be6 {[%clk 0:00:41]} 21. Qxc7+ {[%clk 0:01:42]}  Kf6 {[%clk 0:00:41]} 22. Qe5+ {[%clk 0:01:41]}  Ke7 {[%clk 0:00:41]} 23. Nd4 {[%clk 0:01:32]}  Rac8 {[%clk 0:00:17]} 24. Nf5+ {[%clk 0:01:29]}  Ke8 {[%clk 0:00:10]} 25. Bxe6 {[%clk 0:01:17]}  f6 {[%clk 0:00:07]} 26. Qd6 {[%clk 0:01:15]}  Rf7 {[%clk 0:00:06]} 27. Bxc8 {[%clk 0:00:55]} 1-0


[Site "https://www.chess.com"]

[Event "Titled Tuesday Blitz March 07 Early 2023"]
[White "Ansh M Shah"]
[Black "Tan, Jun Ying"]
[WhiteFideId "25033379"]
[BlackFideId "5710413"]
[WhiteElo "2084"]
[BlackElo "2089"]
[Result "0-1"]
[Round "04"]
[TimeControl "180+2"]
[Date "2023.03.07"]
[WhiteClock "0:00:07"]
[BlackClock "0:00:11"]

1. d4 {[%clk 0:03:00]}  c5 {[%clk 0:02:53]} 2. dxc5 {[%clk 0:02:59]}  e6 {[%clk 0:02:52]} 3. Nf3 {[%clk 0:02:57]}  Bxc5 {[%clk 0:02:46]} 4. e3 {[%clk 0:02:58]}  Nf6 {[%clk 0:02:45]} 5. Be2 {[%clk 0:02:57]}  O-O {[%clk 0:02:44]} 6. O-O {[%clk 0:02:58]}  b6 {[%clk 0:02:45]} 7. b3 {[%clk 0:02:59]}  Bb7 {[%clk 0:02:45]} 8. Bb2 {[%clk 0:02:58]}  d5 {[%clk 0:02:45]} 9. Nbd2 {[%clk 0:02:59]}  Nbd7 {[%clk 0:02:46]} 10. a3 {[%clk 0:02:59]}  a5 {[%clk 0:02:45]} 11. c4 {[%clk 0:02:59]}  Qe7 {[%clk 0:02:44]} 12. Nd4 {[%clk 0:02:53]}  Rac8 {[%clk 0:02:43]} 13. Bf3 {[%clk 0:02:52]}  Rfd8 {[%clk 0:02:42]} 14. Qe2 {[%clk 0:02:50]}  Ne5 {[%clk 0:02:39]} 15. Rfc1 {[%clk 0:02:34]}  Nxf3+ {[%clk 0:02:38]} 16. N2xf3 {[%clk 0:02:35]}  dxc4 {[%clk 0:02:31]} 17. bxc4 {[%clk 0:02:35]}  Ne4 {[%clk 0:02:26]} 18. Nb5 {[%clk 0:02:31]}  f6 {[%clk 0:02:24]} 19. Bd4 {[%clk 0:02:28]}  e5 {[%clk 0:02:17]} 20. Bxc5 {[%clk 0:02:23]}  Qxc5 {[%clk 0:02:16]} 21. Rd1 {[%clk 0:02:19]}  Nd6 {[%clk 0:02:04]} 22. Nxd6 {[%clk 0:02:02]}  Rxd6 {[%clk 0:02:05]} 23. h3 {[%clk 0:01:59]}  Ba6 {[%clk 0:02:00]} 24. Rxd6 {[%clk 0:01:35]}  Qxd6 {[%clk 0:02:00]} 25. Rd1 {[%clk 0:01:35]}  Qe6 {[%clk 0:01:54]} 26. Qb2 {[%clk 0:01:27]}  Bxc4 {[%clk 0:01:52]} 27. Nd2 {[%clk 0:01:25]}  Bd5 {[%clk 0:01:52]} 28. Nb1 {[%clk 0:01:13]}  Ba8 {[%clk 0:01:43]} 29. Nc3 {[%clk 0:01:07]}  h6 {[%clk 0:01:28]} 30. e4 {[%clk 0:00:51]}  Rb8 {[%clk 0:01:18]} 31. Nd5 {[%clk 0:00:50]}  Bxd5 {[%clk 0:01:18]} 32. Rxd5 {[%clk 0:00:37]}  Qc6 {[%clk 0:01:18]} 33. Qb3 {[%clk 0:00:35]}  Kh7 {[%clk 0:01:17]} 34. a4 {[%clk 0:00:35]}  Qc1+ {[%clk 0:01:15]} 35. Rd1 {[%clk 0:00:27]}  Qf4 {[%clk 0:01:12]} 36. f3 {[%clk 0:00:22]}  f5 {[%clk 0:00:55]} 37. Re1 {[%clk 0:00:15]}  Qg3 {[%clk 0:00:46]} 38. Qc3 {[%clk 0:00:12]}  Rc8 {[%clk 0:00:41]} 39. Qxc8 {[%clk 0:00:06]}  Qxe1+ {[%clk 0:00:42]} 40. Kh2 {[%clk 0:00:07]}  Qb4 {[%clk 0:00:19]} 41. Qxf5+ {[%clk 0:00:07]}  Kg8 {[%clk 0:00:19]} 42. Qe6+ {[%clk 0:00:04]}  Kf8 {[%clk 0:00:19]} 43. Qxe5 {[%clk 0:00:03]}  Qxa4 {[%clk 0:00:19]} 44. Qb8+ {[%clk 0:00:03]}  Kf7 {[%clk 0:00:18]} 45. Qb7+ {[%clk 0:00:04]}  Kf8 {[%clk 0:00:18]} 46. Qxb6 {[%clk 0:00:04]}  Qb4 {[%clk 0:00:16]} 47. Qd8+ {[%clk 0:00:04]}  Kf7 {[%clk 0:00:17]} 48. Qd5+ {[%clk 0:00:05]}  Kf8 {[%clk 0:00:16]} 49. e5 {[%clk 0:00:05]}  a4 {[%clk 0:00:15]} 50. e6 {[%clk 0:00:06]}  Qb8+ {[%clk 0:00:14]} 51. Kg1 {[%clk 0:00:04]}  Qb6+ {[%clk 0:00:14]} 52. Kh1 {[%clk 0:00:04]}  a3 {[%clk 0:00:12]} 53. Qd7 {[%clk 0:00:02]}  Qb1+ {[%clk 0:00:11]} 54. Kh2 {[%clk 0:00:03]}  Qb8+ {[%clk 0:00:12]} 55. Kg1 {[%clk 0:00:02]}  Qb6+ {[%clk 0:00:11]} 56. Kf1 {[%clk 0:00:02]}  Qb1+ {[%clk 0:00:10]} 57. Kf2 {[%clk 0:00:02]}  Qb6+ {[%clk 0:00:09]} 58. Kg3 {[%clk 0:00:03]}  Qb8+ {[%clk 0:00:08]} 59. Kg4 {[%clk 0:00:03]}  Qe8 {[%clk 0:00:05]} 60. Qd6+ {[%clk 0:00:02]}  Qe7 {[%clk 0:00:06]} 61. Qb8+ {[%clk 0:00:03]}  Qe8 {[%clk 0:00:06]} 62. Qb4+ {[%clk 0:00:04]}  Qe7 {[%clk 0:00:06]} 63. Qf4+ {[%clk 0:00:04]}  Kg8 {[%clk 0:00:05]} 64. Qb8+ {[%clk 0:00:04]}  Kh7 {[%clk 0:00:05]} 65. Qb1+ {[%clk 0:00:04]}  g6 {[%clk 0:00:06]} 66. Qa2 {[%clk 0:00:05]}  Kg7 {[%clk 0:00:05]} 67. Kf4 {[%clk 0:00:05]}  Kf6 {[%clk 0:00:05]} 68. Qa1+ {[%clk 0:00:04]}  Kxe6 {[%clk 0:00:06]} 69. Qe5+ {[%clk 0:00:04]}  Kf7 {[%clk 0:00:06]} 70. Qd5+ {[%clk 0:00:04]}  Kg7 {[%clk 0:00:06]} 71. Kg3 {[%clk 0:00:03]}  Qg5+ {[%clk 0:00:06]} 72. Qxg5 {[%clk 0:00:02]}  hxg5 {[%clk 0:00:07]} 73. Kg4 {[%clk 0:00:03]}  a2 {[%clk 0:00:08]} 74. Kxg5 {[%clk 0:00:04]}  a1=Q {[%clk 0:00:08]} 75. f4 {[%clk 0:00:04]}  Qf6+ {[%clk 0:00:09]} 76. Kg4 {[%clk 0:00:05]}  Qf5+ {[%clk 0:00:09]} 77. Kf3 {[%clk 0:00:05]}  Kf6 {[%clk 0:00:10]} 78. g4 {[%clk 0:00:06]}  Qd3+ {[%clk 0:00:10]} 79. Kg2 {[%clk 0:00:06]}  Qe2+ {[%clk 0:00:11]} 80. Kg3 {[%clk 0:00:06]}  Qe3+ {[%clk 0:00:11]} 81. Kh4 {[%clk 0:00:07]}  Qf2# {[%clk 0:00:11]} 0-1


[Site "https://www.chess.com"]

[Event "Titled Tuesday Blitz March 07 Early 2023"]
[White "Andrews, Todd"]
[Black "Czernek, Tymon"]
[WhiteFideId "2012456"]
[BlackFideId "1199510"]
[WhiteElo "2389"]
[BlackElo "2156"]
[Result "1-0"]
[Round "04"]
[TimeControl "180+2"]
[Date "2023.03.07"]
[WhiteClock "0:01:03"]
[BlackClock "0:01:35"]

1. e4 {[%clk 0:03:00]}  c5 {[%clk 0:03:00]} 2. Nf3 {[%clk 0:03:00]}  d6 {[%clk 0:03:00]} 3. d4 {[%clk 0:02:59]}  cxd4 {[%clk 0:03:01]} 4. Nxd4 {[%clk 0:02:59]}  Nf6 {[%clk 0:03:01]} 5. Nc3 {[%clk 0:03:00]}  a6 {[%clk 0:03:02]} 6. Bc4 {[%clk 0:02:59]}  e6 {[%clk 0:03:02]} 7. Bb3 {[%clk 0:03:00]}  Be7 {[%clk 0:03:03]} 8. Qe2 {[%clk 0:03:00]}  O-O {[%clk 0:03:04]} 9. g4 {[%clk 0:03:00]}  b5 {[%clk 0:03:03]} 10. g5 {[%clk 0:03:00]}  Nfd7 {[%clk 0:03:04]} 11. h4 {[%clk 0:02:56]}  Nc5 {[%clk 0:03:01]} 12. Be3 {[%clk 0:02:55]}  Qc7 {[%clk 0:03:01]} 13. O-O-O {[%clk 0:02:54]}  Nc6 {[%clk 0:03:00]} 14. Kb1 {[%clk 0:02:53]}  Na5 {[%clk 0:02:56]} 15. g6 {[%clk 0:02:48]}  Naxb3 {[%clk 0:02:50]} 16. gxh7+ {[%clk 0:02:43]}  Kh8 {[%clk 0:02:50]} 17. axb3 {[%clk 0:02:44]}  Bb7 {[%clk 0:02:46]} 18. Rhg1 {[%clk 0:02:35]}  Bf6 {[%clk 0:02:40]} 19. Bg5 {[%clk 0:02:26]}  Bxg5 {[%clk 0:02:34]} 20. Rxg5 {[%clk 0:02:17]}  b4 {[%clk 0:02:33]} 21. Rdg1 {[%clk 0:02:10]}  f6 {[%clk 0:02:22]} 22. Rxg7 {[%clk 0:02:09]}  Qxg7 {[%clk 0:02:23]} 23. Rxg7 {[%clk 0:02:10]}  Kxg7 {[%clk 0:02:23]} 24. Na4 {[%clk 0:02:06]}  Rae8 {[%clk 0:02:16]} 25. Qg4+ {[%clk 0:01:53]}  Kf7 {[%clk 0:02:16]} 26. h5 {[%clk 0:01:46]}  Nxa4 {[%clk 0:01:46]} 27. Qg6+ {[%clk 0:01:38]}  Ke7 {[%clk 0:01:46]} 28. Qg7+ {[%clk 0:01:38]}  Rf7 {[%clk 0:01:46]} 29. h8=Q {[%clk 0:01:31]}  Rxh8 {[%clk 0:01:46]} 30. Qxh8 {[%clk 0:01:31]}  Nc5 {[%clk 0:01:46]} 31. f3 {[%clk 0:01:27]}  f5 {[%clk 0:01:44]} 32. exf5 {[%clk 0:01:24]}  e5 {[%clk 0:01:45]} 33. f6+ {[%clk 0:01:19]}  Rxf6 {[%clk 0:01:41]} 34. Qg7+ {[%clk 0:01:19]}  Rf7 {[%clk 0:01:42]} 35. Nf5+ {[%clk 0:01:20]}  Ke6 {[%clk 0:01:42]} 36. Qg6+ {[%clk 0:01:20]}  Rf6 {[%clk 0:01:42]} 37. Qg8+ {[%clk 0:01:10]}  Kd7 {[%clk 0:01:36]} 38. h6 {[%clk 0:01:03]}  Rxf5 {[%clk 0:01:35]} 39. h7 {[%clk 0:01:03]} 1-0


[Site "https://www.chess.com"]

[Event "Titled Tuesday Blitz March 07 Early 2023"]
[White "Shevtchenko, Olesya"]
[Black "Pinheiro, Iung Alicio de O."]
[WhiteFideId "24131890"]
[BlackFideId "2104350"]
[WhiteElo "2003"]
[BlackElo "2283"]
[Result "1-0"]
[Round "04"]
[TimeControl "180+2"]
[Date "2023.03.07"]
[WhiteClock "0:00:07"]
[BlackClock "0:00:11"]

1. g4 {[%clk 0:02:56]}  d5 {[%clk 0:02:58]} 2. Bg2 {[%clk 0:02:55]}  c6 {[%clk 0:02:55]} 3. g5 {[%clk 0:02:54]}  e5 {[%clk 0:02:52]} 4. h4 {[%clk 0:02:54]}  h6 {[%clk 0:02:49]} 5. d4 {[%clk 0:02:49]}  e4 {[%clk 0:02:33]} 6. Nc3 {[%clk 0:02:48]}  hxg5 {[%clk 0:02:27]} 7. hxg5 {[%clk 0:02:46]}  Rxh1 {[%clk 0:02:28]} 8. Bxh1 {[%clk 0:02:46]}  Be7 {[%clk 0:02:28]} 9. Be3 {[%clk 0:02:32]}  Bxg5 {[%clk 0:02:17]} 10. Qd2 {[%clk 0:02:31]}  Bxe3 {[%clk 0:02:00]} 11. Qxe3 {[%clk 0:02:32]}  Qh4 {[%clk 0:01:59]} 12. Bg2 {[%clk 0:02:29]}  Qh2 {[%clk 0:01:57]} 13. Kf1 {[%clk 0:02:26]}  Nf6 {[%clk 0:01:54]} 14. Qg5 {[%clk 0:02:21]}  Kf8 {[%clk 0:01:46]} 15. Nd1 {[%clk 0:02:14]}  Be6 {[%clk 0:01:43]} 16. Ne3 {[%clk 0:02:12]}  Nbd7 {[%clk 0:01:42]} 17. b3 {[%clk 0:02:04]}  g6 {[%clk 0:01:38]} 18. c4 {[%clk 0:01:58]}  Kg7 {[%clk 0:01:38]} 19. cxd5 {[%clk 0:01:55]}  cxd5 {[%clk 0:01:35]} 20. Rc1 {[%clk 0:01:54]}  Nb6 {[%clk 0:01:16]} 21. Ke1 {[%clk 0:01:31]}  Rc8 {[%clk 0:00:49]} 22. Rd1 {[%clk 0:01:27]}  Nbd7 {[%clk 0:00:38]} 23. Kd2 {[%clk 0:01:18]}  Qc7 {[%clk 0:00:37]} 24. Ke1 {[%clk 0:01:14]}  Qh2 {[%clk 0:00:35]} 25. Kd2 {[%clk 0:01:14]}  Qh6 {[%clk 0:00:35]} 26. Qxh6+ {[%clk 0:01:09]}  Kxh6 {[%clk 0:00:35]} 27. Bh3 {[%clk 0:01:09]}  Nf8 {[%clk 0:00:30]} 28. f3 {[%clk 0:00:46]}  Kg7 {[%clk 0:00:28]} 29. f4 {[%clk 0:00:43]}  Rc6 {[%clk 0:00:26]} 30. f5 {[%clk 0:00:43]}  Bd7 {[%clk 0:00:26]} 31. Rf1 {[%clk 0:00:41]}  g5 {[%clk 0:00:25]} 32. Bg2 {[%clk 0:00:40]}  Ra6 {[%clk 0:00:23]} 33. a4 {[%clk 0:00:38]}  Rb6 {[%clk 0:00:23]} 34. Kc3 {[%clk 0:00:38]}  Rc6+ {[%clk 0:00:23]} 35. Kd2 {[%clk 0:00:38]}  a5 {[%clk 0:00:24]} 36. Nh3 {[%clk 0:00:36]}  N8h7 {[%clk 0:00:24]} 37. Nf2 {[%clk 0:00:35]}  Rb6 {[%clk 0:00:22]} 38. Kc3 {[%clk 0:00:35]}  Rc6+ {[%clk 0:00:18]} 39. Kd2 {[%clk 0:00:34]}  Nh5 {[%clk 0:00:18]} 40. Nxd5 {[%clk 0:00:30]}  Bxf5 {[%clk 0:00:15]} 41. Ne7 {[%clk 0:00:23]}  Rf6 {[%clk 0:00:14]} 42. Nxf5+ {[%clk 0:00:22]}  Rxf5 {[%clk 0:00:15]} 43. Bxe4 {[%clk 0:00:23]}  Rf6 {[%clk 0:00:15]} 44. Bxh7 {[%clk 0:00:21]}  Kxh7 {[%clk 0:00:15]} 45. Rh1 {[%clk 0:00:21]}  Kg6 {[%clk 0:00:15]} 46. Ng4 {[%clk 0:00:20]}  Rf4 {[%clk 0:00:15]} 47. Ne5+ {[%clk 0:00:20]}  Kh6 {[%clk 0:00:15]} 48. e3 {[%clk 0:00:20]}  Rf2+ {[%clk 0:00:10]} 49. Kd3 {[%clk 0:00:20]}  Rb2 {[%clk 0:00:07]} 50. Ke4 {[%clk 0:00:18]}  f6 {[%clk 0:00:06]} 51. Nc4 {[%clk 0:00:10]}  Rxb3 {[%clk 0:00:06]} 52. Nd6 {[%clk 0:00:10]}  Ra3 {[%clk 0:00:06]} 53. Nf5+ {[%clk 0:00:06]}  Kg6 {[%clk 0:00:06]} 54. Ne7+ {[%clk 0:00:06]}  Kf7 {[%clk 0:00:06]} 55. Rxh5 {[%clk 0:00:03]}  Kxe7 {[%clk 0:00:07]} 56. Rh7+ {[%clk 0:00:03]}  Ke6 {[%clk 0:00:07]} 57. Rxb7 {[%clk 0:00:04]}  Rxa4 {[%clk 0:00:08]} 58. Rb6+ {[%clk 0:00:05]}  Kf7 {[%clk 0:00:09]} 59. Kf5 {[%clk 0:00:05]}  Ra3 {[%clk 0:00:07]} 60. Rxf6+ {[%clk 0:00:06]}  Ke7 {[%clk 0:00:08]} 61. Re6+ {[%clk 0:00:05]}  Kd7 {[%clk 0:00:08]} 62. Re5 {[%clk 0:00:06]}  a4 {[%clk 0:00:08]} 63. Kxg5 {[%clk 0:00:06]}  Rb3 {[%clk 0:00:08]} 64. Kf4 {[%clk 0:00:07]}  a3 {[%clk 0:00:09]} 65. Ra5 {[%clk 0:00:07]}  Kc6 {[%clk 0:00:09]} 66. e4 {[%clk 0:00:07]}  Kb6 {[%clk 0:00:10]} 67. Ra8 {[%clk 0:00:07]}  Kb7 {[%clk 0:00:11]} 68. Ra4 {[%clk 0:00:06]}  Kb6 {[%clk 0:00:11]} 69. Ke5 {[%clk 0:00:07]}  Kb5 {[%clk 0:00:11]} 70. Ra8 {[%clk 0:00:07]}  Kc4 {[%clk 0:00:12]} 71. d5 {[%clk 0:00:07]}  Kc3 {[%clk 0:00:12]} 72. Kd6 {[%clk 0:00:07]}  Kb2 {[%clk 0:00:12]} 73. e5 {[%clk 0:00:06]}  a2 {[%clk 0:00:13]} 74. Rxa2+ {[%clk 0:00:06]}  Kxa2 {[%clk 0:00:14]} 75. e6 {[%clk 0:00:06]}  Rb6+ {[%clk 0:00:14]} 76. Kd7 {[%clk 0:00:07]}  Kb3 {[%clk 0:00:12]} 77. e7 {[%clk 0:00:07]}  Rb7+ {[%clk 0:00:13]} 78. Ke6 {[%clk 0:00:07]}  Kc4 {[%clk 0:00:11]} 79. e8=Q {[%clk 0:00:05]}  Rb6+ {[%clk 0:00:11]} 80. Qc6+ {[%clk 0:00:05]}  Rxc6+ {[%clk 0:00:10]} 81. dxc6 {[%clk 0:00:06]}  Kc5 {[%clk 0:00:11]} 82. c7 {[%clk 0:00:07]} 1-0


[Site "https://www.chess.com"]

[Event "Titled Tuesday Blitz March 07 Early 2023"]
[White "Valle Maytin, Luis Enrique"]
[Black "Sekar, B"]
[WhiteFideId "3503666"]
[BlackFideId "5043743"]
[WhiteElo "2225"]
[BlackElo "2258"]
[Result "0-1"]
[Round "04"]
[TimeControl "180+2"]
[Date "2023.03.07"]
[WhiteClock "0:00:01"]
[BlackClock "0:00:05"]

1. e4 {[%clk 0:03:00]}  e5 {[%clk 0:02:59]} 2. Nf3 {[%clk 0:02:59]}  Nc6 {[%clk 0:02:59]} 3. Bb5 {[%clk 0:02:54]}  a6 {[%clk 0:02:59]} 4. Ba4 {[%clk 0:02:54]}  Nf6 {[%clk 0:02:59]} 5. O-O {[%clk 0:02:54]}  b5 {[%clk 0:02:59]} 6. Bb3 {[%clk 0:02:54]}  Bc5 {[%clk 0:03:00]} 7. c3 {[%clk 0:02:54]}  d6 {[%clk 0:02:59]} 8. Re1 {[%clk 0:02:54]}  O-O {[%clk 0:02:56]} 9. h3 {[%clk 0:02:54]}  h6 {[%clk 0:02:55]} 10. a4 {[%clk 0:02:54]}  Rb8 {[%clk 0:02:55]} 11. d4 {[%clk 0:02:50]}  Bb6 {[%clk 0:02:55]} 12. Be3 {[%clk 0:02:50]}  Re8 {[%clk 0:02:51]} 13. Nbd2 {[%clk 0:02:47]}  exd4 {[%clk 0:02:33]} 14. cxd4 {[%clk 0:02:42]}  Nb4 {[%clk 0:02:33]} 15. e5 {[%clk 0:02:20]}  Nfd5 {[%clk 0:02:28]} 16. Nf1 {[%clk 0:02:07]}  Be6 {[%clk 0:02:16]} 17. Bd2 {[%clk 0:01:56]}  Nd3 {[%clk 0:02:11]} 18. a5 {[%clk 0:01:02]}  Ba7 {[%clk 0:02:00]} 19. Bg5 {[%clk 0:00:43]}  hxg5 {[%clk 0:01:40]} 20. Qxd3 {[%clk 0:00:43]}  c5 {[%clk 0:01:30]} 21. Bxd5 {[%clk 0:00:19]}  Bxd5 {[%clk 0:01:27]} 22. dxc5 {[%clk 0:00:20]}  dxc5 {[%clk 0:01:24]} 23. Rad1 {[%clk 0:00:19]}  Ba8 {[%clk 0:00:35]} 24. Qe3 {[%clk 0:00:17]}  Qe7 {[%clk 0:00:35]} 25. Nxg5 {[%clk 0:00:16]}  c4 {[%clk 0:00:34]} 26. Qf4 {[%clk 0:00:11]}  Rbd8 {[%clk 0:00:24]} 27. Rxd8 {[%clk 0:00:10]}  Rxd8 {[%clk 0:00:20]} 28. e6 {[%clk 0:00:11]}  f6 {[%clk 0:00:20]} 29. Nf3 {[%clk 0:00:10]}  Bd5 {[%clk 0:00:18]} 30. Qg4 {[%clk 0:00:09]}  Re8 {[%clk 0:00:17]} 31. Nh4 {[%clk 0:00:09]}  Bxe6 {[%clk 0:00:17]} 32. Nf5 {[%clk 0:00:09]}  Bxf5 {[%clk 0:00:15]} 33. Rxe7 {[%clk 0:00:09]}  Bxg4 {[%clk 0:00:16]} 34. Rxe8+ {[%clk 0:00:10]}  Kf7 {[%clk 0:00:16]} 35. Ra8 {[%clk 0:00:10]}  Bd4 {[%clk 0:00:16]} 36. hxg4 {[%clk 0:00:10]}  Bxb2 {[%clk 0:00:17]} 37. Rxa6 {[%clk 0:00:10]}  b4 {[%clk 0:00:17]} 38. Rc6 {[%clk 0:00:10]}  c3 {[%clk 0:00:16]} 39. Ne3 {[%clk 0:00:11]}  b3 {[%clk 0:00:17]} 40. a6 {[%clk 0:00:09]}  Bc1 {[%clk 0:00:16]} 41. Nd1 {[%clk 0:00:09]}  c2 {[%clk 0:00:13]} 42. Nc3 {[%clk 0:00:08]}  b2 {[%clk 0:00:13]} 43. Rc7+ {[%clk 0:00:06]}  Kg6 {[%clk 0:00:12]} 44. Rb7 {[%clk 0:00:07]}  Bd2 {[%clk 0:00:11]} 45. a7 {[%clk 0:00:04]}  c1=Q+ {[%clk 0:00:10]} 46. Kh2 {[%clk 0:00:04]}  Qa1 {[%clk 0:00:06]} 47. Nb1 {[%clk 0:00:01]}  Qa6 {[%clk 0:00:05]} 48. Rxb2 {[%clk 0:00:01]}  Bc1 {[%clk 0:00:04]} 49. Rc2 {[%clk 0:00:01]}  Bf4+ {[%clk 0:00:04]} 50. g3 {[%clk 0:00:01]}  Be5 {[%clk 0:00:05]} 0-1


[Site "https://www.chess.com"]